bitfinex/quotes_ETHUSD_20240722
["timestamp","ask_amount","ask_price","bid_price","bid_amount"]
[1721632518997,15.0,3480.0,3479.9,7.2857476]
[1721632519398,15.0,3480.0,3479.9,10.2857476]
[1721632519699,15.0,3480.0,3479.9,7.4121076]
[1721632520060,15.0,3480.0,3479.9,3.55]
[1721632520330,15.0,3480.0,3479.9,6.42364]
[1721632521198,15.0,3480.0,3479.9,9.29728]
[1721632522532,13.52454395,3480.0,3479.9,17.57612]
[1721632523032,13.52454395,3480.0,3479.9,20.44976]
[1721632523033,6.79420153,3480.0,3479.9,20.44976]
[1721632523220,0.23722019,3481.0,3480.9,2.87282]
[1721632523429,0.23722019,3481.0,3480.9,9.29564]
[1721632524193,0.1513572,3481.5,3480.9,3.55]
[1721632524394,0.1513572,3481.5,3481.0,0.55]
[1721632524637,0.1513572,3481.5,3481.4,2.8724]
[1721632524813,0.1513572,3481.5,3481.4,3.4224]
[1721632525020,0.1513572,3481.5,3481.4,6.4224]
[1721632526699,0.1513572,3481.5,3481.4,9.2948]
[1721632527124,0.1513572,3481.5,3481.4,6.4224]
[1721632527298,0.1513572,3481.5,3481.4,3.55]
[1721632527845,0.1513572,3481.5,3481.4,0.55]
[1721632528261,0.1513572,3481.5,3481.3,3.42241]
[1721632528481,0.1513572,3481.5,3481.4,3.0]
[1721632528744,0.1513572,3481.5,3481.4,0.55]
[1721632529566,2.87251,3481.3,3480.6,7.3]
[1721632529768,2.87274,3481.0,3480.2,2.87338]
[1721632529980,0.53903672,3481.3,3480.1,2.87347]
[1721632530151,2.3665,3481.4,3480.1,2.87347]
[1721632530152,2.87288,3480.9,3480.1,2.87347]
[1721632530737,2.87288,3480.9,3479.8,2.87371]
[1721632530738,2.87288,3480.9,3479.6,0.587396]
[1721632531041,2.87288,3480.9,3480.2,2.87332]
[1721632531240,2.3665,3481.4,3480.0,2.87356]
[1721632531241,2.87292,3480.8,3480.0,2.87356]
[1721632531439,2.87275,3481.0,3479.6,3.587396]
[1721632531440,2.87308,3480.6,3479.9,2.87364]
[1721632531689,2.87308,3480.6,3480.0,3.0]
[1721632531894,2.87308,3480.6,3479.6,6.461276]
[1721632531895,2.87332,3480.3,3479.6,3.461256]
[1721632532045,2.3665,3480.4,3479.6,0.587396]
[1721632532046,2.87339,3480.2,3479.6,0.587396]
[1721632532247,2.87339,3480.2,3478.8,7.3]
[1721632532248,2.87332,3480.3,3478.8,7.3]
[1721632532483,2.87332,3480.3,3478.5,2.407]
[1721632532484,2.87332,3480.3,3478.7,3.162037]
[1721632532714,2.87362,3480.0,3479.2,2.8742]
[1721632532872,2.87362,3480.0,3478.7,0.287467]
[1721632532873,2.87362,3480.0,3479.3,2.87412]
[1721632533042,2.87348,3480.1,3479.4,2.87405]
[1721632533480,2.87348,3480.1,3479.1,2.8743]
[1721632533481,2.87358,3480.0,3479.1,2.8743]
[1721632533696,2.87331,3480.3,3479.2,3.58743]
[1721632533896,2.3665,3480.4,3479.2,0.58743]
[1721632534045,5.23974,3480.4,3479.7,2.8738]
[1721632534380,5.23974,3480.4,3479.2,0.58743]
[1721632534381,2.3665,3480.4,3479.2,0.58743]
[1721632534698,2.87274,3481.0,3480.3,2.8733]
[1721632534990,0.287274,3481.0,3480.3,2.8733]
[1721632535489,2.87258,3481.2,3480.3,2.8733]
[1721632535700,2.87258,3481.2,3480.1,2.87347]
[1721632535701,2.87266,3481.1,3480.4,0.55]
[1721632535985,2.87291,3480.8,3480.4,0.55]
[1721632536184,2.87274,3481.0,3479.5,10.3]
[1721632536185,2.87274,3481.0,3480.2,0.55]
[1721632536393,2.87291,3480.8,3480.2,0.55]
[1721632536600,2.87291,3480.8,3480.2,3.42339]
[1721632536748,2.4912,3481.4,3480.2,3.42339]
[1721632536749,2.87283,3480.9,3480.2,3.42339]
[1721632536946,2.87266,3481.1,3480.2,3.42339]
[1721632537648,2.87291,3480.8,3480.2,0.55]
[1721632537845,2.87291,3480.8,3480.1,0.55]
[1721632538044,2.87291,3480.8,3480.1,3.765815]
[1721632538447,2.87291,3480.8,3480.2,2.87339]
[1721632538647,2.87291,3480.8,3480.1,0.342355]
[1721632539288,2.87291,3480.8,3480.1,3.215815]
[1721632539461,2.87283,3480.9,3480.2,2.87337]
[1721632539846,2.87291,3480.8,3480.2,2.87337]
[1721632540074,2.87291,3480.8,3479.5,13.17392]
[1721632540075,2.87338,3480.3,3479.6,2.87381]
[1721632540391,2.87338,3480.3,3479.5,10.3]
[1721632540392,2.4801,3480.5,3479.9,2.87363]
[1721632540548,2.4801,3480.5,3480.0,0.55]
[1721632541053,2.4801,3480.5,3479.7,2.87373]
[1721632541054,5.35326,3480.5,3479.8,0.55]
[1721632541253,5.35326,3480.5,3479.8,3.42366]
[1721632541575,2.87328,3480.4,3479.8,0.55]
[1721632541750,2.87328,3480.4,3479.2,6.61843]
[1721632541751,5.35326,3480.5,3479.7,3.42378]
[1721632541952,2.87324,3480.4,3479.7,3.42378]
[1721632542300,2.4801,3480.5,3479.8,2.87372]
[1721632542478,2.4801,3480.5,3479.9,0.55]
[1721632543380,2.4801,3480.5,3479.9,3.42362]
[1721632543560,5.35332,3480.5,3479.9,0.55]
[1721632544800,2.87332,3480.3,3479.9,0.55]
[1721632544949,2.87332,3480.3,3479.8,0.55]
[1721632545451,2.87332,3480.3,3479.6,3.42388]
[1721632545654,2.87332,3480.3,3479.7,2.87379]
[1721632545889,2.87332,3480.3,3479.8,0.55]
[1721632546818,2.4801,3480.5,3479.2,3.58743]
[1721632546819,0.05751903,3480.4,3479.2,3.58743]
[1721632547020,2.87373,3479.8,3478.8,10.17449]
[1721632547194,2.87407,3479.4,3478.7,0.287467]
[1721632547492,2.87414,3479.3,3478.7,0.287467]
[1721632547655,2.93112903,3480.0,3478.7,0.287467]
[1721632547656,2.87428,3479.2,3478.7,0.287467]
[1721632547967,2.87428,3479.2,3478.3,2.87495]
[1721632548164,2.87428,3479.2,3478.5,2.87474]
[1721632548412,5.22676,3479.4,3478.3,2.87495]
[1721632548553,2.87474,3478.6,3477.9,10.17527]
[1721632548893,2.87474,3478.6,3477.9,2.87527]
[1721632549052,2.87465,3478.7,3478.0,3.450282]
[1721632549256,2.87465,3478.7,3478.0,2.87521]
[1721632551070,2.87448,3478.9,3478.1,3.42512]
[1721632551370,2.87458,3478.8,3478.1,3.42512]
[1721632551691,5.2268,3479.4,3478.1,0.55]
[1721632551692,2.87465,3478.7,3478.1,0.55]
[1721632551995,2.87465,3478.7,3478.0,3.4252]
[1721632552182,2.87465,3478.7,3478.1,0.34252]
[1721632552385,2.87465,3478.7,3478.2,0.55]
[1721632554057,2.87473,3478.6,3478.2,0.55]
[1721632554259,2.87527,3478.0,3477.0,10.17604]
[1721632554457,2.87505,3478.2,3477.2,2.8758]
[1721632554458,2.87531,3477.9,3477.2,2.8758]
[1721632554692,2.3235,3478.5,3476.8,2.484]
[1721632554693,2.87516,3478.1,3477.4,2.87569]
[1721632555263,2.87531,3477.9,3477.3,0.863184]
[1721632555461,2.87531,3477.9,3477.1,2.87595]
[1721632555687,0.05751903,3478.4,3477.1,2.87595]
[1721632555883,0.05751903,3478.4,3476.9,2.87612]
[1721632555884,2.87556,3477.6,3476.9,2.87612]
[1721632557312,2.87546,3477.7,3476.9,2.87612]
[1721632557602,2.87546,3477.7,3477.0,2.87603]
[1721632558063,2.87546,3477.7,3477.1,0.55]
[1721632558857,2.87546,3477.7,3477.1,3.55]
[1721632559258,2.8753,3477.9,3477.1,6.42593]
[1721632559458,2.8753,3477.9,3477.2,2.87584]
[1721632559657,2.87514,3478.1,3477.2,2.87584]
[1721632559658,2.87538,3477.8,3477.3,0.642584]
[1721632560101,2.87538,3477.8,3477.3,0.64142878]
[1721632560670,2.87569,3477.5,3477.1,3.55]
[1721632560874,2.87546,3477.7,3477.1,0.55]
[1721632561201,2.87546,3477.7,3477.0,0.55]
[1721632561437,2.87563,3477.5,3477.0,0.55]
[1721632561767,2.87547,3477.7,3477.0,0.55]
[1721632562004,2.87547,3477.7,3477.1,0.700136]
[1721632562176,2.87547,3477.7,3477.2,0.55]
[1721632562732,0.05751903,3477.6,3477.0,3.0]
[1721632562907,0.05751903,3478.0,3476.9,0.57524]
[1721632563266,2.87567,3477.5,3476.9,0.57524]
[1721632563504,2.87567,3477.5,3477.0,0.645152]
[1721632564302,2.87571,3477.4,3477.0,0.645152]
[1721632564686,2.87571,3477.4,3476.7,3.0]
[1721632564865,2.87571,3477.4,3476.8,0.55]
[1721632565215,0.05751903,3478.0,3476.8,3.55]
[1721632565216,2.8758,3477.3,3476.8,3.55]
[1721632565405,2.8758,3477.3,3476.8,0.55]
[1721632565564,2.8758,3477.3,3476.9,3.0]
[1721632565906,2.8758,3477.3,3476.9,0.942634]
[1721632569601,2.8758,3477.3,3476.8,0.55]
[1721632569796,5.15437,3477.5,3476.8,0.55]
[1721632570187,2.87572,3477.4,3476.8,0.55]
[1721632570383,2.2787,3477.5,3476.8,0.55]
[1721632570384,2.87591,3477.2,3476.8,0.55]
[1721632570795,2.87591,3477.2,3476.5,2.87644]
[1721632570796,2.87591,3477.2,3476.7,0.55]
[1721632571128,2.87591,3477.2,3476.6,0.55]
[1721632571287,2.87587,3477.3,3476.3,5.14401]
[1721632571288,2.87587,3477.3,3476.3,2.87657]
[1721632571488,2.87587,3477.3,3476.2,3.0]
[1721632571489,2.87593,3477.2,3476.5,2.87645]
[1721632573496,2.87597,3477.1,3476.4,1.605333]
[1721632573690,2.87597,3477.1,3476.5,0.55]
[1721632574333,2.87597,3477.1,3476.5,3.42645]
[1721632574538,2.87597,3477.1,3476.6,0.7908393]
[1721632575798,2.87579,3477.3,3476.7,2.87628]
[1721632576328,2.87571,3477.4,3476.8,2.87616]
[1721632576741,2.2787,3477.5,3476.8,2.87616]
[1721632576742,2.2787,3477.5,3477.0,2.87603]
[1721632577041,2.87547,3477.7,3476.8,2.87616]
[1721632577251,2.87547,3477.7,3476.9,0.36669993]
[1721632577866,2.87556,3477.6,3476.9,3.24276993]
[1721632578322,2.87556,3477.6,3477.0,2.87603]
[1721632579222,2.87564,3477.5,3476.9,0.36669993]
[1721632579515,2.87547,3477.7,3477.1,2.87593]
[1721632579842,2.8754,3477.8,3477.1,2.87593]
[1721632581344,2.87547,3477.7,3477.1,2.87593]
[1721632585206,2.87547,3477.7,3476.9,3.24275993]
[1721632585411,2.87547,3477.7,3477.0,2.87598]
[1721632585634,2.87547,3477.7,3476.9,3.24275993]
[1721632586124,5.27421,3477.9,3476.9,0.36669993]
[1721632586326,5.32895,3478.5,3477.7,2.87546]
[1721632586526,2.4541,3478.5,3477.7,2.87546]
[1721632586726,2.87505,3478.2,3477.3,2.87577]
[1721632586931,2.87521,3478.0,3477.4,2.8757]
[1721632587251,2.4541,3478.5,3477.4,2.87568]
[1721632587252,2.8752,3478.1,3477.4,2.87568]
[1721632587418,2.8752,3478.1,3477.5,2.87562]
[1721632588720,2.87522,3478.0,3477.3,2.87574]
[1721632588915,2.87522,3478.0,3477.4,2.87569]
[1721632589931,2.87537,3477.9,3477.2,2.87585]
[1721632590136,2.87537,3477.9,3476.9,0.36669993]
[1721632590137,2.3061,3477.8,3476.9,0.36669993]
[1721632590336,5.18148,3477.8,3477.2,2.87587]
[1721632590751,2.3061,3477.8,3477.2,2.87587]
[1721632591956,5.18148,3477.8,3477.2,2.87587]
[1721632592458,5.18148,3477.8,3477.0,2.87604]
[1721632592459,2.87546,3477.7,3477.0,2.87604]
[1721632593760,2.3061,3477.8,3477.1,2.87595]
[1721632594255,5.18153,3477.8,3477.1,2.87595]
[1721632595222,2.87547,3477.7,3477.1,2.87595]
[1721632595758,2.3061,3477.8,3476.9,3.24281993]
[1721632595958,5.18148,3477.8,3477.2,2.87581]
[1721632597757,2.3061,3477.8,3477.3,2.87573]
[1721632597970,3.07030828,3478.2,3477.6,2.87553]
[1721632598271,0.59200828,3478.4,3477.7,0.05750388]
[1721632598484,0.88876603,3478.5,3477.7,0.05750388]
[1721632598485,0.59200828,3478.5,3477.9,2.87522]
[1721632598761,1.46220631,3478.4,3477.9,2.87522]
[1721632598961,1.46220631,3478.4,3478.0,2.8752]
[1721632599172,2.05421459,3478.4,3478.0,2.8752]
[1721632599356,1.46220631,3478.3,3478.0,2.8752]
[1721632599660,0.59200828,3478.4,3478.0,2.8752]
[1721632599870,3.46687828,3478.5,3477.7,2.87545]
[1721632600033,2.05422057,3478.4,3477.8,2.87536]
[1721632600232,0.59200828,3478.4,3477.9,2.87528]
[1721632600447,1.46221148,3478.3,3477.9,2.87528]
[1721632601285,2.05421976,3478.3,3477.9,2.87528]
[1721632601454,0.59200828,3478.3,3477.9,2.87528]
[1721632601654,0.59200828,3478.3,3477.8,2.87536]
[1721632602348,0.59200828,3478.3,3477.6,2.87554]
[1721632602547,2.05425105,3478.2,3477.7,3.42545]
[1721632602767,0.59200828,3478.2,3477.7,3.42545]
[1721632605948,2.87535,3477.9,3477.3,2.87577]
[1721632606363,2.87535,3477.9,3477.1,2.87594]
[1721632606690,2.87535,3477.9,3477.0,3.32428199]
[1721632606691,3.46747828,3477.7,3477.0,5.87598]
[1721632607052,0.59200828,3477.6,3477.0,5.87598]
[1721632607403,3.46747828,3477.7,3477.0,5.87598]
[1721632607562,0.59200828,3477.7,3477.2,2.87586]
[1721632607906,3.76407603,3477.9,3477.2,2.87586]
[1721632607907,0.59200828,3477.8,3477.2,2.87586]
[1721632609006,3.46731828,3477.9,3477.2,2.87586]
[1721632609177,0.59200828,3477.9,3477.5,2.87562]
[1721632609355,0.59200828,3478.0,3477.6,2.87553]
[1721632609547,2.93380828,3478.1,3477.6,2.87553]
[1721632609994,2.3418,3478.1,3477.6,2.87553]
[1721632610369,2.3418,3478.1,3477.7,2.87545]
[1721632611054,2.3418,3478.1,3477.8,2.87537]
[1721632612164,0.59200828,3478.3,3477.8,2.87537]
[1721632612466,0.59200828,3478.3,3477.8,3.25357219]
[1721632612989,0.59200828,3478.3,3477.7,2.87545]
[1721632614353,0.59200828,3478.3,3477.2,0.91185899]
[1721632614573,0.59200828,3478.0,3477.1,3.0]
[1721632614762,2.4128,3478.1,3477.1,3.0]
[1721632614763,3.00480828,3478.1,3477.1,3.0]
[1721632614992,2.05439871,3478.0,3477.1,3.0]
[1721632615165,2.05439871,3478.0,3477.3,2.87578]
[1721632615166,2.87531,3477.9,3477.3,2.87578]
[1721632616371,0.59200828,3478.0,3477.4,2.87569]
[1721632616576,5.28798,3478.1,3477.5,2.87562]
[1721632616577,5.87998828,3478.1,3477.5,2.87562]
[1721632617106,2.87521,3478.0,3477.2,3.50014199]
[1721632617271,2.87521,3478.0,3477.3,3.6500142]
[1721632618697,2.87521,3478.0,3477.4,2.87568]
[1721632618897,3.46721828,3478.0,3477.4,2.87568]
[1721632619222,2.87521,3478.0,3477.4,2.87568]
[1721632619423,3.46721828,3478.0,3477.3,5.87579]
[1721632619920,3.46721828,3478.0,3477.3,3.0]
[1721632619921,2.87544,3477.8,3477.3,3.0]
[1721632620130,2.87544,3477.8,3477.2,5.87585]
[1721632621087,3.46744828,3477.8,3477.2,3.0]
[1721632621929,0.59200828,3477.9,3477.4,2.87569]
[1721632622385,0.59200828,3477.8,3477.4,2.87569]
[1721632622586,4.14427871,3477.8,3476.9,4.37566065]
[1721632622824,4.14427871,3477.8,3476.9,2.87612]
[1721632622825,3.46761828,3477.6,3476.9,2.87612]
[1721632623045,3.46761828,3477.6,3477.0,5.87601]
[1721632623706,0.59200828,3477.5,3477.0,5.87601]
[1721632623899,3.46761828,3477.6,3477.0,5.87601]
[1721632624106,2.87595,3477.1,3477.0,3.0]
[1721632624304,2.87595,3477.1,3475.9,1.80874666]
[1721632624305,2.2986,3476.2,3475.9,1.80874666]
[1721632624723,1.46322982,3476.1,3475.9,1.80874666]
[1721632625028,5.52142073,3476.1,3475.9,1.80874666]
[1721632625333,2.87686,3476.0,3475.9,1.80874666]
[1721632628025,2.87686,3476.0,3475.1,2.8776]
[1721632630338,2.87697,3475.9,3475.1,2.8776]
[1721632630539,2.87697,3475.9,3474.8,2.87781]
[1721632630540,2.415,3475.8,3474.8,2.87781]
[1721632630741,2.87718,3475.7,3474.9,0.55]
[1721632630977,2.7729504,3475.8,3475.0,2.87763]
[1721632631161,2.7729504,3475.8,3475.1,0.55]
[1721632631363,2.7729504,3475.8,3475.1,3.42761]
[1721632631364,2.415,3475.8,3475.1,3.42761]
[1721632632482,2.2611,3476.1,3475.2,2.87745]
[1721632632666,2.2611,3476.1,3475.3,0.55]
[1721632632897,2.2611,3476.1,3475.4,2.87729]
[1721632633069,2.2611,3476.1,3475.6,2.87719]
[1721632633253,2.3996,3476.5,3475.8,2.87703]
[1721632633585,7.48,3477.1,3476.0,2.87686]
[1721632633586,2.87629,3476.7,3476.0,2.87686]
[1721632634073,2.4612,3476.9,3476.1,0.55]
[1721632634278,2.3955,3477.4,3476.1,0.55]
[1721632634442,5.27122,3477.4,3476.6,2.8763]
[1721632634638,5.27122,3477.4,3476.6,3.451583]
[1721632635084,2.3955,3477.4,3476.6,0.575283]
[1721632635282,2.3955,3477.4,3476.1,0.55]
[1721632635438,2.87619,3476.9,3476.1,3.42671]
[1721632635647,2.87627,3476.8,3476.0,2.87685]
[1721632636187,2.87641,3476.6,3475.9,2.87693]
[1721632636393,2.87641,3476.6,3476.0,0.55]
[1721632636681,2.87607,3477.0,3476.3,2.87655]
[1721632637243,2.87607,3477.0,3476.1,3.219463]
[1721632637244,2.87581,3477.3,3476.5,2.87645]
[1721632637467,2.3955,3477.4,3476.3,2.87657]
[1721632637785,2.3955,3477.4,3476.1,0.342693]
[1721632637786,2.87621,3476.8,3476.1,0.342693]
[1721632638001,2.87605,3477.0,3476.1,0.342693]
[1721632638167,2.87605,3477.0,3476.2,0.8719553]
[1721632638352,2.87605,3477.0,3476.3,2.8766]
[1721632639041,2.87588,3477.2,3476.4,2.87653]
[1721632639788,2.87597,3477.1,3476.4,2.87653]
[1721632642052,2.87588,3477.2,3476.2,3.7486453]
[1721632642680,2.87588,3477.2,3476.4,2.87653]
[1721632643950,2.87598,3477.1,3476.4,2.87653]
[1721632645058,2.8758,3477.3,3476.5,2.87645]
[1721632645387,2.8759,3477.2,3476.5,2.87645]
[1721632646968,2.87596,3477.1,3476.3,2.87657]
[1721632647869,2.4969,3476.8,3475.5,7.3]
[1721632648191,2.87653,3476.4,3475.5,2.87722]
[1721632648503,2.87653,3476.4,3475.6,2.87719]
[1721632648804,2.87653,3476.4,3475.4,3.741864]
[1721632648805,2.87653,3476.4,3475.7,2.8771]
[1721632649758,2.4969,3476.8,3475.8,0.05753542]
[1721632649955,2.4969,3476.8,3475.4,0.864514]
[1721632649956,2.4969,3476.8,3476.2,2.87662]
[1721632650714,5.37312,3476.8,3476.1,2.87678]
[1721632653010,2.87629,3476.7,3476.1,2.87678]
[1721632653213,2.87629,3476.7,3475.9,2.8769]
[1721632653415,2.87629,3476.7,3476.0,3.42684]
[1721632653882,2.87637,3476.6,3476.0,3.42684]
[1721632654817,2.4969,3476.8,3476.2,2.87669]
[1721632656816,2.4969,3476.8,3476.3,2.87656]
[1721632658416,2.4969,3476.8,3476.1,2.87673]
[1721632658583,2.4969,3476.8,3476.0,0.55]
[1721632658921,2.87638,3476.6,3476.0,0.55]
[1721632659594,2.55441903,3476.8,3475.8,2.877]
[1721632659791,2.55441903,3476.8,3475.1,10.17756]
[1721632659792,5.37313,3476.8,3475.9,2.87693]
[1721632660008,5.37313,3476.8,3476.0,2.87684]
[1721632660009,2.87642,3476.6,3476.0,2.87684]
[1721632660183,5.37313,3476.8,3476.1,2.87673]
[1721632660381,5.37313,3476.8,3476.2,2.87668]
[1721632661524,2.4969,3476.8,3476.2,2.87668]
[1721632663819,2.4969,3476.8,3476.3,2.87662]
[1721632665181,2.4969,3476.8,3476.1,2.87678]
[1721632665383,5.37311,3476.8,3476.1,2.87678]
[1721632667694,5.37311,3476.8,3475.9,2.87693]
[1721632667695,2.8763,3476.7,3475.9,2.87693]
[1721632668028,2.87647,3476.5,3475.2,2.4548]
[1721632668239,2.87647,3476.5,3475.3,1.55008988]
[1721632668519,2.87647,3476.5,3475.4,0.7605432]
[1721632668826,2.87637,3476.6,3475.9,2.87694]
[1721632670346,0.59815912,3476.7,3475.9,2.87694]
[1721632670620,3.47444912,3476.7,3476.1,2.87677]
[1721632671482,3.47444912,3476.7,3475.9,2.87694]
[1721632672422,0.59815912,3476.6,3475.9,2.87694]
[1721632672628,0.59815912,3476.6,3476.0,2.87685]
[1721632672800,3.47444912,3476.7,3476.0,2.87685]
[1721632673324,2.87662,3476.3,3475.6,2.87719]
[1721632673625,2.87654,3476.4,3475.7,2.87711]
[1721632675475,2.87654,3476.4,3475.4,0.7605432]
[1721632675476,2.4395,3476.1,3475.4,0.7605432]
[1721632675639,2.4395,3476.1,3475.3,3.42742]
[1721632675930,2.4395,3476.1,3475.3,2.87742]
[1721632675931,2.87688,3476.0,3475.3,2.87742]
[1721632676089,2.4395,3476.1,3475.2,2.87752]
[1721632676090,2.87705,3475.8,3475.2,2.87752]
[1721632676289,2.87705,3475.8,3474.9,2.87775]
[1721632676290,0.34522403,3475.7,3475.1,2.8776]
[1721632676490,3.22234403,3475.7,3475.0,2.87767]
[1721632676808,3.164825,3475.7,3475.0,2.87767]
[1721632677017,3.76298412,3475.7,3475.0,2.87767]
[1721632679709,3.164825,3475.7,3475.0,2.87767]
[1721632681453,2.87721,3475.6,3474.9,2.87775]
[1721632681652,2.87721,3475.6,3475.0,0.55]
[1721632681956,2.46741903,3475.6,3474.4,2.2671]
[1721632682252,2.4099,3475.6,3474.7,2.8779]
[1721632682464,2.4099,3475.6,3474.1,0.60054215]
[1721632682465,2.46741903,3475.6,3474.1,0.60054215]
[1721632682648,2.8774,3475.4,3474.1,4.60094824]
[1721632682949,2.87747,3475.3,3474.7,2.87788]
[1721632684630,2.87734,3475.5,3474.7,2.87788]
[1721632684825,2.87734,3475.5,3474.8,2.87784]
[1721632685520,2.46741903,3475.6,3474.6,2.87797]
[1721632685521,2.87738,3475.4,3474.6,2.87797]
[1721632685960,5.34461903,3475.6,3474.6,2.87797]
[1721632685961,2.87745,3475.3,3474.6,2.87797]
[1721632686166,2.87754,3475.2,3474.6,2.87797]
[1721632686323,0.05751903,3475.2,3474.5,2.8781]
[1721632686524,0.05751903,3475.2,3474.0,2.87851]
[1721632686525,2.4872,3475.0,3474.0,2.87851]
[1721632686750,2.4872,3475.0,3473.3,1.35182743]
[1721632686751,2.87805,3474.6,3473.9,2.8786]
[1721632687964,3.08535912,3475.0,3473.3,2.4396]
[1721632687965,2.4132,3474.4,3473.3,2.4396]
[1721632688185,2.87844,3474.1,3473.4,2.87897]
[1721632688540,2.87836,3474.2,3473.5,2.87891]
[1721632688787,2.87828,3474.3,3473.6,2.87883]
[1721632688943,3.46846426,3474.3,3473.6,2.87883]
[1721632689139,2.87837,3474.2,3473.4,2.87897]
[1721632689664,3.46846426,3474.3,3473.6,2.87885]
[1721632689866,3.46846426,3474.3,3473.7,2.87876]
[1721632691481,3.46846426,3474.3,3473.5,2.87888]
[1721632691683,0.2934889,3474.2,3473.4,2.87897]
[1721632691889,0.2934889,3474.2,3473.7,2.87875]
[1721632692956,3.1718489,3474.2,3473.5,2.87888]
[1721632693171,3.1718489,3474.2,3473.2,2.87916]
[1721632693172,2.87858,3474.0,3473.2,2.87916]
[1721632693389,2.87866,3473.9,3473.2,2.87916]
[1721632693597,2.87858,3474.0,3473.0,2.87934]
[1721632693598,2.87869,3473.8,3473.0,2.87934]
[1721632694062,2.87869,3473.8,3473.1,2.87926]
[1721632694286,2.87869,3473.8,3472.8,2.8795]
[1721632694287,0.31718489,3474.1,3472.9,2.87943]
[1721632694288,2.87887,3473.6,3472.9,2.87943]
[1721632694476,2.42591903,3473.7,3472.7,2.87953]
[1721632694477,3.46694793,3473.5,3472.7,2.87953]
[1721632694679,0.05751903,3473.5,3472.7,2.87959]
[1721632694862,5.24722,3473.7,3472.7,2.87959]
[1721632695205,2.87885,3473.6,3473.0,2.87934]
[1721632695353,2.3684,3473.7,3472.9,2.87942]
[1721632695553,0.23684,3473.6,3472.9,2.87942]
[1721632696595,2.87894,3473.5,3472.8,2.87951]
[1721632696829,2.87894,3473.5,3472.6,2.87967]
[1721632696830,2.3684,3473.7,3472.7,0.05758962]
[1721632696952,2.3684,3473.7,3473.1,2.8792]
[1721632697153,2.3684,3473.7,3472.9,2.8794]
[1721632697696,2.3684,3473.7,3472.8,2.87949]
[1721632697697,2.879,3473.5,3472.8,2.87949]
[1721632697865,2.93651903,3473.5,3472.8,2.87949]
[1721632698270,5.24725,3473.7,3472.9,2.87943]
[1721632698502,2.87886,3473.6,3472.9,2.87943]
[1721632700056,2.3684,3473.7,3473.2,2.87912]
[1721632700501,2.3684,3473.7,3473.1,2.87926]
[1721632700699,2.3684,3473.7,3473.4,2.87899]
[1721632700869,2.3684,3473.7,3473.2,2.87913]
[1721632701058,2.3684,3473.7,3473.1,2.87926]
[1721632701385,2.3684,3473.7,3473.3,2.87908]
[1721632703079,2.3684,3473.7,3472.9,0.575903]
[1721632703403,2.3684,3473.7,3472.8,2.8795]
[1721632703599,5.24723,3473.7,3473.0,2.87934]
[1721632704091,2.87887,3473.6,3473.0,2.87934]
[1721632704911,2.3684,3473.7,3471.8,13.21131]
[1721632704912,2.3684,3473.7,3473.1,2.87926]
[1721632705055,2.3684,3473.7,3472.4,2.8798]
[1721632705056,2.3684,3473.7,3472.1,0.05758458]
[1721632705265,2.3684,3473.7,3473.2,2.87918]
[1721632705561,2.3684,3473.7,3473.1,2.87926]
[1721632705760,5.24718,3473.7,3473.1,2.87926]
[1721632706098,2.87886,3473.6,3472.9,2.87938]
[1721632706317,2.87894,3473.5,3472.9,2.87938]
[1721632707207,0.23684,3473.6,3473.0,2.87933]
[1721632707510,2.3684,3473.7,3473.2,2.87911]
[1721632707661,2.43,3474.2,3473.6,2.87885]
[1721632707867,2.43,3474.2,3473.8,2.87863]
[1721632708677,2.43,3474.2,3473.3,0.287911]
[1721632708861,2.43,3474.2,3474.0,2.8785]
[1721632709063,2.43,3474.2,3474.1,2.87844]
[1721632709263,5.4955,3474.9,3474.3,2.87827]
[1721632709505,5.4955,3474.9,3473.5,2.87887]
[1721632709506,2.4955,3474.9,3473.9,2.87859]
[1721632709794,2.4955,3474.9,3474.0,3.42852]
[1721632709795,5.37328,3474.9,3474.0,3.42852]
[1721632710009,5.37328,3474.9,3474.2,2.87829]
[1721632710226,5.37328,3474.9,3474.0,3.42852]
[1721632710227,2.4955,3474.9,3474.4,2.87818]
[1721632710513,2.4955,3474.9,3474.1,2.87842]
[1721632710660,2.4955,3475.3,3474.6,2.87798]
[1721632710860,2.4955,3475.3,3474.7,2.87792]
[1721632713151,2.4955,3475.3,3474.5,2.87811]
[1721632713311,2.87764,3475.1,3474.3,2.87823]
[1721632713475,5.37301,3475.3,3474.5,2.87805]
[1721632713681,2.87758,3475.2,3474.5,2.87805]
[1721632714126,2.4909,3474.8,3474.2,2.87835]
[1721632714290,2.4909,3474.8,3473.4,7.3]
[1721632714291,2.4909,3474.8,3474.3,2.87827]
[1721632714493,2.4909,3474.8,3474.5,2.8781]
[1721632714811,2.4909,3474.8,3474.3,2.87821]
[1721632715323,0.53686,3474.7,3474.3,2.87821]
[1721632715524,2.4909,3474.8,3474.4,2.87817]
[1721632716622,2.4521,3475.3,3474.7,2.87787]
[1721632716775,2.4521,3475.3,3474.6,2.87798]
[1721632716975,2.4521,3475.3,3474.6,0.575605]
[1721632717326,2.4521,3475.3,3474.5,2.87807]
[1721632717493,2.4521,3475.3,3474.6,2.87797]
[1721632718027,2.4521,3475.3,3474.7,2.87793]
[1721632718222,2.4521,3475.3,3473.8,2.3088]
[1721632718527,2.4521,3475.3,3475.1,2.87759]
[1721632718816,2.2892,3475.8,3475.2,2.87752]
[1721632719020,2.2892,3475.8,3475.3,2.8774]